Cogmind - Beta 17.1 @@@ ROGUE MODE // 2026.08.30 @ 19:21:11 Player: SnailSD Result: Destroyed by G-34 Mercenary with Small Laser Performance ------------- Evolutions (1) 500 Regions Visited (3) 600 Robots Destroyed (52) 260 Value Destroyed (1235) 1235 Prototype IDs (6) 120 Alien Tech Used (0) 0 Bonus (0) 0 TOTAL SCORE: 2715 Bonus ------- None Cogmind --------- Core Integrity 0/400 Matter 245/300 Energy 112/125 System Corruption 2% Temperature Hot (225) Movement Rolling (215) Ox9 Location -9/Materials Parts ------- > --- POWER (1) -------- Light Ion Engine > --- PROPULSION (2) --- Wheel > --- UTILITY (4) ------ Huge Storage Unit Structural Scanner Improved Targeting Computer Hacking Suite > --- WEAPON (2) ------- Advanced Beam Cannon Light Cannon > --- INVENTORY (25) --- Improved Heat Sink Improved Heat Sink Improved Heat Sink High-capacity Storage Unit High-capacity Matter Pod (200) EM Shotgun Medium Laser Beam Cannon Advanced Beam Cannon Advanced Beam Cannon Assault Rifle Light Assault Rifle Light Assault Rifle Light Assault Rifle Heavy Assault Rifle Heavy Assault Rifle Heavy Assault Rifle Improved Assault Rifle Peak State ------------ > --- POWER ------------ Ion Engine > --- PROPULSION ------- Compact Wheel Compact Wheel > --- UTILITY ---------- Huge Storage Unit Structural Scanner Improved Targeting Computer Hacking Suite > --- WEAPON ----------- Improved Assault Rifle Improved Assault Rifle > --- INVENTORY -------- Ion Engine Light Ion Engine Wheel Compact Wheel Heat Sink Improved Heat Sink Improved Heat Sink High-capacity Storage Unit High-capacity Matter Pod EM Shotgun Medium Laser Beam Cannon Advanced Beam Cannon Advanced Beam Cannon Advanced Beam Cannon Assault Rifle Light Assault Rifle Light Assault Rifle Light Assault Rifle Heavy Assault Rifle Heavy Assault Rifle Heavy Assault Rifle Improved Assault Rifle Light Cannon Light Cannon [Rating: 20] Favorites ----------- Power Light Ion Engine Engine Light Ion Engine Propulsion Light Treads Treads Light Treads Leg Aluminum Leg Wheel Compact Wheel Utility Structural Scanner Device Structural Scanner Storage High-capacity Storage Unit Processor Improved Targeting Computer Hackware Hacking Suite Protection Light Armor Plating Weapon Assault Rifle Energy Gun Medium Laser Energy Cannon Advanced Beam Cannon Ballistic Gun Assault Rifle Ballistic Cannon Light Cannon Build | -11 -10 -10 -9 ------- Run | Yrd Mat Min Mat Slots Evolved 2 | . . . 2 Power . | . . . . Propulsion . | . . . . Utility 2 | . . . 2 Weapon . | . . . . Parts Attached 36 | 7 6 . 23 Power 5 | 1 . . 4 Engine 5 | 1 . . 4 Core . | . . . . Reactor . | . . . . Propulsion 12 | 2 3 . 7 Treads 3 | 2 1 . . Leg 1 | . . . 1 Wheel 8 | . 2 . 6 Hover . | . . . . Flight . | . . . . Utility 11 | 2 2 . 7 Device 4 | 1 1 . 2 Storage 4 | 1 1 . 2 Processor 1 | . . . 1 Hackware 1 | . . . 1 Protection 1 | . . . 1 Artifact . | . . . . Weapon 8 | 2 1 . 5 Energy Gun 1 | 1 . . . Energy Cannon 1 | . . . 1 Ballistic Gun 4 | 1 1 . 2 Ballistic Cannon 2 | . . . 2 Launcher . | . . . . Special Weapon . | . . . . Impact Weapon . | . . . . Slashing Weapon . | . . . . Piercing Weapon . | . . . . Special Melee Weapon . | . . . . Unidentified Prototypes 1 | . . . 1 Parts Lost 19 | . 3 . 16 Power 3 | . . . 3 Propulsion 8 | . 2 . 6 Utility 3 | . . . 3 Weapon 5 | . 1 . 4 Highest Loss Streak 7 | . 2 . 7 To Critical Strikes . | . . . . Average Backups 14 | 3 11 18 19 Power 2 | . 2 2 1 Propulsion 2 | 1 2 2 1 Utility 4 | . 3 8 5 Weapon 6 | . 3 6 10 Tool/Special . | . . . . Unused Backups 25 | . 3 2 20 Power 2 | . . 2 . Propulsion 2 | . 2 . . Utility 8 | . . . 8 Weapon 13 | . 1 . 12 Tool/Special . | . . . . Average Slot Usage (%) 96 | . 98 100 93 Engine 12 | . 14 14 9 Treads 15 | . 21 28 6 Wheel 8 | . 5 . 14 Device 14 | . 13 14 15 Storage 12 | . 14 14 11 Processor 1 | . . . 3 Hackware 3 | . . . 7 Protection 1 | . . . 2 Energy Gun 8 | . 13 14 2 Ballistic Gun 14 | . 13 14 16 Ballistic Cannon 1 | . . . 3 Peak Build Rating 20 | 7 9 9 20 Average Rating 10 | 5 7 9 14 On Entrance 6 | . 7 9 9 Avg Prop Armor Cover (%) 10 | . . . 10 Naked Turns . | . . . . Heaviest Build 95 | 13 48 48 95 Greatest Support 40 | 40 40 40 40 Greatest Overweight (x) 15 | . 2 1 15 Average Overweight (x) 1 | . . 1 2 Largest Inventory Capacity 25 | 8 20 20 25 Average Capacity 18 | 7 15 20 22 Most Carried 25 | 6 20 20 25 Average Carried 14 | 3 11 18 19 Final Capacity 25 | 8 20 20 25 Final Carried 20 | 6 20 18 18 Class Distribution -------------------- 74% | Mutant 25% | Scavenger-Mutant Dominant Class ---------------- Mutant | -10/Materials Mutant | -10/Mines Scavenger-Mutant | -9/Materials Resources | -11 -10 -10 -9 ----------- Run | Yrd Mat Min Mat Matter Collected 1524 | 333 287 47 857 Remotely . | . . . . Salvage Created 2022 | 166 619 . 1237 Parts 104 | 10 37 . 57 Haulers Intercepted 4 | . 2 . 2 Recyclers Shooed . | . . . . Parts Field Recycled . | . . . . Retrieved Matter . | . . . . Parts Self-Destructed . | . . . . Prevented . | . . . . Parts Restored . | . . . . Kills | -11 -10 -10 -9 ------- Run | Yrd Mat Min Mat Combat Hostiles Destroyed 33 | . 14 . 19 Guns 25 | . 14 . 11 Cannons 8 | . . . 8 Classes Destroyed 9 | 3 4 . 2 Worker 8 | 2 1 . 5 Tunneler 1 | 1 . . . Hauler 4 | . 2 . 2 Recycler 5 | 1 . . 4 Operator 1 | . 1 . . Swarmer 5 | . 3 . 2 Grunt 20 | . 11 . 9 Brawler 1 | . . . 1 Sentry 7 | . . . 7 Best Kill Streak 7 | 2 3 . 7 Combat Bots Only 3 | . 3 . 3 Max Kills in Single Turn 2 | 2 1 . 2 Gunslinging . | . . . . Exploded . | . . . . Melee . | . . . . Uniques/NPCs Destroyed . | . . . . Combat | -11 -10 -10 -9 -------- Run | Yrd Mat Min Mat Hostile Shots Fired 270 | . 85 . 185 Missed 77 | . 27 . 50 Hits 193 | . 58 . 135 Projectile 193 | . 58 . 135 Critical Strikes 3 | . 1 . 2 Damage Taken 2402 | . 681 . 1721 Core 502 | . 95 . 407 Absorbed by Shields . | . . . . Core Remaining (%) 81 | 100 . 62 . Volleys Fired 160 | 6 70 . 84 Largest 2 | 2 2 . 2 Hottest 98 | 70 70 . 98 Shots Fired 310 | 12 135 . 163 Gun 249 | 12 135 . 102 Cannon 61 | . . . 61 Launcher . | . . . . Special . | . . . . Kinetic 227 | 6 70 . 151 Thermal 83 | 6 65 . 12 Explosive . | . . . . Electromagnetic . | . . . . Robot Hit Streak 36 | 3 23 . 36 Robot Miss Streak 6 | 3 6 . 3 Penetration Max . | . . . . Secondary Targets . | . . . . Shots Hit Robots 217 | 7 85 . 125 Core Hits 80 | 5 35 . 40 Critical Kills . | . . . . Critical Parts Destroyed 2 | . 1 . 1 Critical Strikes 8 | . 6 . 2 Burn 5 | . 5 . . Destroy 2 | . 1 . 1 Blast 1 | . . . 1 Melee Attacks . | . . . . Impact . | . . . . Slashing . | . . . . Piercing . | . . . . Sneak Attacks . | . . . . Combat Hostiles . | . . . . Follow-up Attacks . | . . . . Damage Inflicted 3303 | 111 1102 . 2090 Guns 2510 | 111 1102 . 1297 Cannons 748 | . . . 748 Explosions . | . . . . Melee . | . . . . Ramming 45 | . . . 45 Kinetic 2462 | 49 525 . 1888 Thermal 796 | 62 577 . 157 Explosive . | . . . . Electromagnetic . | . . . . Impact . | . . . . Slashing . | . . . . Piercing . | . . . . Highest Corruption 2 | . . . 2 Average Corruption 2 | . . . 2 Corruption Purged . | . . . . Corruption Blocked . | . . . . Effects 2 | . . . 2 Matter Fused 1 | . . . 1 Heat Flow Errors 1 | . . . 1 Overload Shots . | . . . . Overflow Damage 11 | . . . 11 Projectiles 11 | . . . 11 Explosions . | . . . . Melee . | . . . . Knockbacks 4 | . . . 4 Impact . | . . . . Kinetic 3 | . . . 3 Secondary 1 | . . . 1 Self-Inflicted Damage 22 | . . . 22 Shots . | . . . . Rammed 3 | . . . 3 Targets Rammed 3 | . . . 3 Kicked . | . . . . Crushed . | . . . . Highest Temperature 265 | 27 180 . 265 Average Temperature 56 | 11 44 . 106 Received Heat Transfer 1155 | . 348 . 807 Effects 1 | . . . 1 Interference 1 | . . . 1 Siege Activations . | . . . . Martial Activations . | . . . . Shielding Activations . | . . . . Robots Disrupted . | . . . . Combat Hostiles . | . . . . Robots Corrupted . | . . . . Combat Hostiles . | . . . . Parts Fried . | . . . . Impact Corruptions . | . . . . Robots Melted . | . . . . Combat Hostiles . | . . . . Parts Melted 11 | . 11 . . Heat Transferred 2553 | 185 2072 . 296 Parts Sabotaged . | . . . . Parts Stolen . | . . . . Parts Stripped . | . . . . Power Chain Reactions . | . . . . Alert | -11 -10 -10 -9 ------- Run | Yrd Mat Min Mat Maximum Alert Level 1 | . 1 . 1 Low Security (%) 86 | 100 79 100 93 Level 1 13 | . 20 . 6 Level 2 . | . . . . Level 3 . | . . . . Level 4 . | . . . . Level 5 . | . . . . High Security . | . . . . Max Security . | . . . . Peak Influence 269 | 10 269 55 235 Initial 55 | . 6 55 1 Average 97 | 1 107 33 98 Influence Increases 1285 | 20 519 . 746 Destroy 0b10 Robot/C 660 | . 280 . 380 Destroy 0b10 Robot/NC 95 | 20 20 . 55 Destroy Leader 188 | . 64 . 124 Successful Hack 20 | . 18 . 2 Disable Machine 30 | . . . 30 Destroy Structure 7 | . 2 . 5 Lose Combat Pursuer 285 | . 135 . 150 Influence Decreases 1050 | 10 385 139 516 Entered New Map 97 | . 4 89 4 Time Decay 778 | 10 351 50 367 Lost Part 175 | . 30 . 145 Squads Dispatched 5 | . 3 . 2 Investigation 3 | . 2 . 1 Extermination . | . . . . Reinforcement 2 | . 1 . 1 Assault . | . . . . Garrison . | . . . . Intercept . | . . . . Searches Triggered . | . . . . Construction Impeded . | . . . . Haulers Reinforced . | . . . . Active Scanning Responses . | . . . . Cargo Convoy Interrupts . | . . . . Stealth | -11 -10 -10 -9 --------- Run | Yrd Mat Min Mat Distress Signals 11 | . 4 . 7 Communications Jammed . | . . . . Distress Signals . | . . . . Times Spotted 72 | . 23 . 49 Peak Tracking Total 13 | . 8 . 13 Tactical Retreats 9 | . 4 . 5 Traps | -11 -10 -10 -9 ------- Run | Yrd Mat Min Mat Traps Triggered 4 | . 4 . . Indirectly . | . . . . Trap Hack Attempts . | . . . . Triggered . | . . . . Disarmed . | . . . . Reprogrammed . | . . . . Reused . | . . . . Traps Extracted . | . . . . Installed . | . . . . Triggered . | . . . . Machines | -11 -10 -10 -9 ---------- Run | Yrd Mat Min Mat Machines Disabled 3 | . 1 . 2 Max in Single Turn 1 | . 1 . 1 Machines Repaired . | . . . . Machines Dismantled . | . . . . Machines Sabotaged . | . . . . Overloaded Fab Kills . | . . . . Hacking | -11 -10 -10 -9 --------- Run | Yrd Mat Min Mat Machines Accessed 10 | . 6 . 4 Terminals 8 | . 5 . 3 Fabricators . | . . . . Repair Stations . | . . . . Recycling Units 1 | . 1 . . Scanalyzers 1 | . . . 1 Garrison Access . | . . . . Total Hacks 27 | . 15 . 12 Successful 11 | . 5 . 6 Failed 16 | . 10 . 6 Catastrophic 7 | . 4 . 3 Database Lockouts . | . . . . Manual 15 | . 10 . 5 Terminals 21 | . 14 . 7 Fabricators . | . . . . Repair Stations . | . . . . Recycling Units 1 | . 1 . . Scanalyzers 5 | . . . 5 Garrison Access . | . . . . Terminal Hacks 6 | . 4 . 2 Robot Analysis 1 | . 1 . . Prototype ID Bank 4 | . 2 . 2 Branch Access Points 1 | . 1 . . Fabricator Hacks . | . . . . Repair Station Hacks . | . . . . Recycling Unit Hacks 1 | . 1 . . Retrieve Components 1 | . 1 . . Scanalyzer 4 | . . . 4 Retrieve Study 4 | . . . 4 Garrison Access Hacks . | . . . . Unauthorized Hacks . | . . . . Terminals . | . . . . Fabricators . | . . . . Repair Stations . | . . . . Recycling Units . | . . . . Scanalyzers . | . . . . Garrison Access . | . . . . Data Cores Recovered . | . . . . Used . | . . . . Hacking Detections 9 | . 6 . 3 Full Trace Events 1 | . . . 1 Feedback Events . | . . . . Feedback Blocked . | . . . . Robot Schematics Acquired . | . . . . Robots Built . | . . . . Authchips . | . . . . Time . | . . . . Total Robot Build Rating . | . . . . Part Schematics Acquired . | . . . . Parts Built . | . . . . Authchips . | . . . . Time . | . . . . Total Part Build Rating . | . . . . Part Studies Acquired 4 | . . . 4 Parts Repaired . | . . . . Time . | . . . . Parts Recycled . | . . . . Recycled Matter . | . . . . Retrieved Matter . | . . . . Retrieved Components 1 | . 1 . . Parts Scanalyzed . | . . . . Part Schematics Acquired . | . . . . Parts Damaged . | . . . . Bothacking | -11 -10 -10 -9 ------------ Run | Yrd Mat Min Mat Used RIF Installer . | . . . . Robots Hacked . | . . . . Non-combat . | . . . . Combat . | . . . . Robot Hacks Applied . | . . . . Relay Couplers Released . | . . . . Fabnet Peak Effective % . | . . . . Robots Rewired . | . . . . Allies Hacked . | . . . . Hacks Repelled . | . . . . Allies | -11 -10 -10 -9 -------- Run | Yrd Mat Min Mat Total Allies . | . . . . Largest Group . | . . . . Highest-Rated Group . | . . . . Highest-Rated Ally . | . . . . Total Orders . | . . . . Ally Attacks . | . . . . Total Damage . | . . . . Kills . | . . . . Allies Corrupted . | . . . . Allies Melted . | . . . . Intel | -11 -10 -10 -9 ------- Run | Yrd Mat Min Mat Active Infowar (turns) 2725 | 28 1442 103 1152 Structural 2641 | . 1386 103 1152 Seismic 278 | 28 56 . 194 Robot Analysis Total 1 | . 1 . . Derelict Logs Recovered . | . . . . Drone Launches . | . . . . Drone Recoveries . | . . . . Exploration | -11 -10 -10 -9 ------------- Run | Yrd Mat Min Mat Turns Passed 2876 | 116 1452 103 1205 Spaces Moved 1373 | 54 672 41 606 Core 6 | 3 . . 3 Treads 603 | 51 497 41 14 Legs . | . . . . Wheels 764 | . 175 . 589 Hover . | . . . . Flight . | . . . . Fastest Speed 50 | 50 115 240 120 Average Speed 160 | 153 176 240 137 Slowest Speed 800 | 160 320 240 800 Overloaded Moves . | . . . . Propulsion Burnouts . | . . . . Robots Hopped . | . . . . Potential Cave-ins . | . . . . Cave-ins Triggered . | . . . . Exploration Rate (%) 41 | 5 87 14 59 Regions Visited 3 Branch Regions 1 Pre-discovered Areas . | . . . . Known Exits Taken 1 | . 1 . . Unknown Exits Taken 2 | 1 . 1 . Scrap Searched 1 | . . 1 . Spaces Dug . | . . . . Terrain Destroyed . | . . . . Melee . | . . . . Projectile . | . . . . AOE . | . . . . Terrain Rammed . | . . . . Walls Destroyed . | . . . . Machines Disabled . | . . . . Actions | -11 -10 -10 -9 --------- Run | Yrd Mat Min Mat Total 1746 | 72 804 48 822 Wait 87 | . 24 4 59 Move 1370 | 53 671 40 606 Hop . | . . . . Pick Up 46 | 6 19 1 20 Fast Attach 21 | 7 7 . 7 Attach 23 | . 3 . 20 Detach 12 | . 3 . 9 Swap 3 | . 1 . 2 Drop 21 | . 6 3 12 Fire 160 | 6 70 . 84 Melee . | . . . . Ram 3 | . . . 3 Kick . | . . . . Crush . | . . . . Escape Stasis . | . . . . Rewire . | . . . . Trap . | . . . . Miscellaneous . | . . . . Route ------- -11/Scrapyard -10/Materials (discovered 4 exits: *Mat x2 / *Min / [Sub]) -10/Mines -9/Materials (discovered 4 exits: [*Mat x2] / [*Min] / [*Sto]) History --------- Turn | Location | Event 18 | -11/Scrapyard | Discovered new exit (range 15) 117 | -11/Scrapyard | Entered Materials 309 | -10/Materials | Build established: Mutant 540 | -10/Materials | Discovered new exit (range 12) 734 | -10/Materials | Discovered new exit (range 16) 936 | -10/Materials | Identified exit to Mines 1307 | -10/Materials | Discovered new exit (range 4) 1569 | -10/Materials | Entered Mines 1593 | -10/Mines | Met a Derelict bent on vengeance 1641 | -10/Mines | Discovered new exit (range 14) 1672 | -10/Mines | Entered Materials 1672 | -9/Materials | Evolved 2 slots: Utility x2 1948 | -9/Materials | Lost 5 parts (1p2n1u1w) 2113 | -9/Materials | Discovered new exit (range 10) 2164 | -9/Materials | Discovered new exit (range 10) 2313 | -9/Materials | Build established: Scavenger-Mutant 2387 | -9/Materials | Discovered new exit (range 9) 2660 | -9/Materials | Core integrity fell below 50% 2748 | -9/Materials | Discovered new exit (range 14) 2821 | -9/Materials | Core integrity fell below 20% 2877 | -9/Materials | Destroyed by G-34 Mercenary with Small Laser Last Messages --------------- 02845_ Ion Engine+ destroyed. 02847_ G-34 Mercenary destroyed. 02848_ K-01 Serf collects debris. 02850_ B-36 Bruiser destroyed. 02851_ K-01 Serf collects debris. 02853_ Acquired 47 matter. 02857_ G-47 Trooper knocked back. 02858_ K-01 Serf collects debris. 02860_ Overheating: System interference. 02860_ Lgt. Cannon+ temporarily disabled. 02860_ Slammed into K-01 Serf. 02860_ K-01 Serf destroyed. 02860_ R-06 Scavenger collects Wheel. 02863_ R-06 Scavenger collects Lgt. Treads. 02864_ Com. Wheel+ destroyed. 02867_ R-06 Scavenger collects Lgt. Treads. 02871_ R-06 Scavenger collects Sml. Matter Pod. 02872_ Destroyed Lgt. Nuclear Core. 02872_ G-47 Trooper destroyed. 02875_ Acquired 21 matter. Map ----- +----------------------------------------------------+ | ## # # #############?????????? | | ## # # ##????????????????????? | | ## # """ # ##??????????????####### | | ## "" + """ # #############???####### | | ## """ # """= # #############???##[[!!! | | ## R" # *% + ## ##???##[[!!! | | ## """ ###+###### ## ####### ! | | ## + =###### ## ####### | | ############### =##??## ## *#%% ! | | ############### ##??## + [%+!* ! | | #### ??""""" ## ###?## ## =#=] | | # ??""""" ## ###### ## ## ######### | | T # ?"""""" # = ##### ## ## ######### | | # """"""" # ############# ##??????? | | # """"""" + g # ##### ##??????? | | ] # # + ?????????## ##??????? | | # = # ##### g # ??????#### ####????? | | # ########### w############# ####????? | | ##+###+################ ########## ##????? | | [%%% g ##????? | | ##????? | | " % ##????? | | T ########## r%= ###### ### ##????? | | " ## ############;######## #####+####????? | | # "##??## % % #### ## ????? | | # ?? ""##??## @ #### ##"" """ ##??? | | # ????||##??## [![ #### ##"" """ ##??? | | # # ?????"##?? + [! #### ##"T """ !##??? | | # # ????? ##?? # [[ #### ##"" ##??? | | + # ?????????? # #### ##"" """ ##??? | | ##### # ?????????? # #### ## """ ##??? | | ##### ##?????????? # #### ## ???? ##??? | | ##??? ?????????? # #### ## ??? ##??? | | ##??? ????????? ##### #####?? ?#####????????? | | + ??? ????????############?? ? ????????? | | ##??# ????????????? ????? ??????????????? | | ##??## ### ?????????????????????? ??????????????? | | ????## ### ??????????????????????? ??????????????? | | ?????????????????????????????????? ??????????????? | | ?????????????????????????????????????????????????? | | ?????????????????????????????????????????????????? | | ?????????????????????????????????????????????????? | | ?????????????????????????????????????????????????? | | ?????????????????????????????????????????????????? | | ?????????????????????????????????????????????????? | | ?????????????????????????????????????????????????? | | ?????????????????????????????????????????????????? | | ?????????????????????????????????????????????????? | | ?????????????????????????????????????????????????? | | ?????????????????????????????????????????????????? | +----------------------------------------------------+ Best States ------------- Heat Dissipation 38 Energy Generation 12 Energy Capacity 250 Matter Stores 300 Matter Capacity 300 Sight Range 16 Terrain Scan Density 10 Armor Coverage 150 Evasion (%) 40 Targeting Accuracy 6 Recoil Reduction 2 Offensive Hacking 10 Item Schematics ----------------- None Robot Schematics ------------------ None Fabricated ------------ Nothing Repaired ---------- Nothing Studied --------- Beam Cannon | -9/Materials | Hacked Lgt. Cannon | -9/Materials | Hacked Com. Wheel | -9/Materials | Hacked Ion Engine | -9/Materials | Hacked Alien Tech Used ----------------- None Achievements -------------- None Challenges ------------ None Game ------ Seed SubatomicHeartLance Manual? 0 Play Time 00:31:14 Cumulative 69.2 hours Start 2026.08.30 @ 03:03:04 End 2026.08.30 @ 19:21:11 Sessions 2 Manual Loads 0 Difficulty Rogue Special Mode None Game No. 118 Rogue 118 Adventurer 0 Explorer 0 Win Type - Total 1 Types 1/0/0/0/0/0/0/0/0/0 Lore% 42 Gallery% 40 Achievement% 30 Wizard Run 0 Options --------- Layout 1 ASCII 1 Keyboard 1 Movement Numpad Keybinds 0 Fullscreen 2 Font 24/Smallcaps Map View 50x35 Zoom Use 0% Tactical HUD 1 Map Filters NONE Filters NONE Steam 1 RUN: 00134964-2ecf-456c-8db1-5314962234c2